fUSD/lending_fUSD_20240919
["ID","MTS","AMOUNT","RATE_DAILY","PERIOD"]
[338542231,1726726252853,-500.0,0.00013442,2]
[338542232,1726726252862,-500.0,0.00013442,2]
[338542233,1726726252872,-684.88,0.00013442,2]
[338542234,1726726252882,-513.79,0.00013442,2]
[338542235,1726726252891,-1390.29,0.00013442,2]
[338542236,1726726252901,-500.0,0.00013442,2]
[338542237,1726726252911,-500.0,0.00013442,2]
[338542238,1726726252921,-500.0,0.00013442,2]
[338542239,1726726252930,-500.0,0.00013442,2]
[338542240,1726726252940,-1280.76,0.00013442,2]
[338542241,1726726252949,-517.94,0.00013442,2]
[338542242,1726726252959,-500.0,0.00013442,2]
[338542243,1726726252968,-276.90312102,0.00013442,2]
[338542244,1726726252978,-500.0,0.00013442,2]
[338542245,1726726252987,-1027.37,0.00013442,2]
[338542246,1726726252997,-1105.03,0.00013442,2]
[338542247,1726726253007,-583.41,0.00013442,2]
[338542248,1726726253017,-500.0,0.00013442,2]
[338542249,1726726253026,-500.0,0.00013442,2]
[338542250,1726726253035,-641.74,0.00013442,2]
[338542251,1726726253045,-584.79,0.00013442,2]
[338542252,1726726253055,-500.0,0.00013442,2]
[338542253,1726726253065,-500.0,0.00013442,2]
[338542254,1726726253074,-500.0,0.00013442,2]
[338542255,1726726253084,-1531.72,0.00013442,2]
[338542256,1726726253095,-500.0,0.00013442,2]
[338542257,1726726253108,-617.17,0.00013442,2]
[338542258,1726726253118,-610.62,0.00013442,2]
[338542259,1726726253127,-500.0,0.00013442,2]
[338542260,1726726253138,-1930.85,0.00013442,2]
[338542261,1726726253149,-859.98,0.00013442,2]
[338542262,1726726253159,-676.16,0.00013442,2]
[338542263,1726726253168,-808.39,0.00013442,2]
[338542264,1726726253178,-1043.04,0.00013442,2]
[338542265,1726726253188,-732.6,0.00013442,2]
[338542266,1726726253198,-500.0,0.00013442,2]
[338542267,1726726253207,-526.12,0.00013442,2]
[338542268,1726726253217,-151.0,0.00013442,2]
[338542269,1726726253228,-988.89,0.00013442,2]
[338542270,1726726253238,-1108.54,0.00013442,2]
[338542271,1726726253248,-500.0,0.00013442,2]
[338542272,1726726253258,-1072.8,0.00013442,2]
[338542273,1726726253267,-500.0,0.00013442,2]
[338542274,1726726253277,-1140.61,0.00013442,2]
[338542275,1726726253287,-500.0,0.00013442,2]
[338542276,1726726253296,-664.19,0.00013442,2]
[338542277,1726726253306,-1101.06,0.00013442,2]
[338542278,1726726253315,-500.0,0.00013442,2]
[338542279,1726726253325,-500.0,0.00013442,2]
[338542280,1726726253335,-934.84,0.00013442,2]
[338542281,1726726253345,-966.26,0.00013442,2]
[338542282,1726726253355,-1172.45,0.00013442,2]
[338542283,1726726253365,-151.0,0.00013442,2]
[338542284,1726726253375,-881.73,0.00013442,2]
[338542285,1726726253384,-1961.74,0.00013442,2]
[338542286,1726726253394,-901.42,0.00013442,2]
[338542287,1726726253404,-151.0,0.00013442,2]
[338542288,1726726253413,-500.0,0.00013442,2]
[338542289,1726726253424,-1876.29,0.00013442,2]
[338542290,1726726253434,-500.0,0.00013442,2]
[338542291,1726726253443,-882.04,0.00013442,2]
[338542292,1726726253453,-500.0,0.00013442,2]
[338542293,1726726253463,-469.11309109,0.00013442,2]
[338542294,1726726253472,-500.0,0.00013442,2]
[338542295,1726726253482,-519.1,0.00013442,2]
[338542296,1726726253491,-598.09668078,0.00013442,2]
[338542297,1726726253501,-500.0,0.00013442,2]
[338542298,1726726253510,-1138.27,0.00013442,2]
[338542299,1726726253519,-500.0,0.00013442,2]
[338542300,1726726253528,-500.0,0.00013442,2]
[338542301,1726726253538,-2184.95,0.00013442,2]
[338542302,1726726253547,-1263.15,0.00013442,2]
[338542303,1726726253557,-500.0,0.00013442,2]
[338542304,1726726253567,-527.14,0.00013442,2]
[338542305,1726726253576,-711.28,0.00013442,2]
[338542306,1726726253586,-500.0,0.00013442,2]
[338542307,1726726253597,-1885.04,0.00013442,2]
[338542308,1726726253606,-500.0,0.00013442,2]
[338542309,1726726253616,-500.0,0.00013442,2]
[338542310,1726726253626,-1029.76,0.00013442,2]
[338542311,1726726253636,-569.29,0.00013442,2]
[338542312,1726726253646,-500.0,0.00013442,2]
[338542313,1726726253655,-500.0,0.00013442,2]
[338542314,1726726253664,-658.37,0.00013442,2]
[338542315,1726726253674,-3711.12,0.00013442,2]
[338542316,1726726253683,-860.39,0.00013442,2]
[338542317,1726726253693,-500.0,0.00013442,2]
[338542318,1726726253702,-422.0713121,0.00013442,2]
[338542319,1726726253712,-500.0,0.00013442,2]
[338542320,1726726253722,-535.41,0.00013442,2]
[338542321,1726726253731,-556.76,0.00013442,2]
[338542322,1726726253741,-500.0,0.00013442,2]
[338542323,1726726253751,-500.0,0.00013442,2]
[338542324,1726726253760,-1868.78,0.00013442,2]
[338542325,1726726253770,-500.0,0.00013442,2]
[338542326,1726726253780,-4272.35,0.00013442,2]
[338542327,1726726253789,-500.0,0.00013442,2]
[338542328,1726726253799,-500.0,0.00013442,2]
[338542329,1726726253809,-2367.01,0.00013442,2]
[338542330,1726726253819,-827.37,0.00013442,2]
[338542331,1726726253828,-151.0,0.00013442,2]
[338542332,1726726253838,-4740.62,0.00013442,2]
[338542333,1726726253849,-500.0,0.00013442,2]
[338542334,1726726253859,-644.61,0.00013442,2]
[338542335,1726726253868,-1582.0,0.00013442,2]
[338542336,1726726253878,-760.94,0.00013442,2]
[338542337,1726726253887,-662.73,0.00013442,2]
[338542338,1726726253897,-500.0,0.00013442,2]
[338542339,1726726253908,-500.0,0.00013442,2]
[338542340,1726726253918,-1516.71,0.00013442,2]
[338542341,1726726253928,-500.0,0.00013442,2]
[338542342,1726726253938,-1763.84,0.00013442,2]
[338542343,1726726253948,-500.0,0.00013442,2]
[338542344,1726726253958,-1565.25,0.00013442,2]
[338542345,1726726253968,-500.0,0.00013442,2]
[338542346,1726726253979,-630.07,0.00013442,2]
[338542347,1726726253989,-500.0,0.00013442,2]
[338542348,1726726253999,-151.0,0.00013442,2]
[338542349,1726726254009,-500.0,0.00013442,2]
[338542350,1726726254018,-500.0,0.00013442,2]
[338542351,1726726254028,-500.0,0.00013442,2]
[338542352,1726726254038,-737.0,0.00013442,2]
[338542353,1726726254048,-500.0,0.00013442,2]
[338542354,1726726254058,-1390.69,0.00013442,2]
[338542355,1726726254068,-500.0,0.00013442,2]
[338542356,1726726254077,-935.35,0.00013442,2]
[338542357,1726726254087,-500.0,0.00013442,2]
[338542358,1726726254101,-500.0,0.00013442,2]
[338542359,1726726254111,-950.1,0.00013442,2]
[338542360,1726726254121,-624.02,0.00013442,2]
[338542361,1726726254131,-5538.17,0.00013442,2]
[338542362,1726726254141,-862.82,0.00013442,2]
[338542363,1726726254151,-151.0,0.00013442,2]
[338542364,1726726254161,-2060.05,0.00013442,2]
[338542365,1726726254171,-500.0,0.00013442,2]
[338542366,1726726254181,-1787.23,0.00013442,2]
[338542367,1726726254191,-644.69,0.00013442,2]
[338542368,1726726254201,-768.85,0.00013442,2]
[338542369,1726726254291,-3039.04,0.00013442,2]
[338542370,1726726254301,-1823.86,0.00013442,2]
[338542371,1726726254311,-500.0,0.00013442,2]
[338542372,1726726254320,-500.0,0.00013442,2]
[338542373,1726726254330,-2159.79,0.00013442,2]
[338542374,1726726254339,-500.0,0.00013442,2]
[338542375,1726726254350,-1118.45,0.00013442,2]
[338542376,1726726254359,-500.0,0.00013442,2]
[338542377,1726726254368,-341.38064597,0.00013442,2]
[338542378,1726726254380,-500.0,0.00013442,2]
[338542379,1726726254390,-3265.76,0.00013442,2]
[338542380,1726726254399,-500.0,0.00013442,2]
[338542381,1726726254409,-3331.94,0.00013442,2]
[338542382,1726726254419,-500.0,0.00013442,2]
[338542383,1726726254428,-806.59,0.00013442,2]
[338542384,1726726254437,-500.0,0.00013442,2]
[338542385,1726726254448,-3132.86,0.00013442,2]
[338542386,1726726254457,-630.58,0.00013442,2]
[338542387,1726726254467,-1453.42,0.00013442,2]
[338542388,1726726254476,-878.15,0.00013442,2]
[338542389,1726726254486,-500.0,0.00013442,2]
[338542390,1726726254496,-500.0,0.00013442,2]
[338542391,1726726254506,-1061.58,0.00013442,2]
[338542392,1726726254515,-500.0,0.00013442,2]
[338542393,1726726254524,-500.0,0.00013442,2]
[338542394,1726726254534,-1028.91,0.00013442,2]
[338542395,1726726254543,-500.0,0.00013442,2]
[338542396,1726726254552,-500.0,0.00013442,2]
[338542397,1726726254561,-500.0,0.00013442,2]
[338542398,1726726254571,-500.0,0.00013442,2]
[338542399,1726726254580,-500.0,0.00013442,2]
[338542400,1726726254590,-989.29,0.00013442,2]
[338542401,1726726254604,-500.0,0.00013442,2]
[338542402,1726726254613,-500.0,0.00013442,2]
[338542403,1726726254622,-500.0,0.00013442,2]
[338542404,1726726254631,-500.0,0.00013442,2]
[338542405,1726726254641,-500.0,0.00013443,2]
[338542406,1726726254650,-151.0,0.00013443,2]
[338542407,1726726254659,-802.51,0.00013443,2]
[338542408,1726726254669,-257.06,0.00013443,2]
[338542409,1726726254678,-815.7,0.00013443,2]
[338542410,1726726254688,-1292.07,0.00013443,2]
[338542411,1726726254697,-500.0,0.00013443,2]
[338542412,1726726254706,-521.87,0.00013443,2]
[338542413,1726726254715,-500.0,0.00013443,2]
[338542414,1726726254724,-858.77,0.00013443,2]
[338542415,1726726254734,-500.0,0.00013443,2]
[338542416,1726726254744,-500.0,0.00013443,2]
[338542417,1726726254753,-613.1,0.00013443,2]
[338542418,1726726254763,-500.0,0.00013443,2]
[338542419,1726726254773,-500.0,0.00013443,2]
[338542420,1726726254782,-500.0,0.00013443,2]
[338542421,1726726254792,-500.0,0.00013443,2]
[338542422,1726726254801,-525.40963424,0.00013443,2]
[338542423,1726726254811,-272.69,0.00013443,2]
[338542424,1726726254821,-599.1,0.00013443,2]
[338542425,1726726254830,-500.0,0.00013443,2]
[338542426,1726726254840,-654.52,0.00013443,2]
[338542427,1726726254851,-500.0,0.00013443,2]
[338542428,1726726254861,-500.0,0.00013443,2]
[338542429,1726726254870,-500.0,0.00013443,2]
[338542430,1726726254880,-983.99,0.00013443,2]
[338542431,1726726254890,-500.0,0.00013443,2]
[338542432,1726726254899,-500.0,0.00013443,2]
[338542433,1726726254910,-500.0,0.00013443,2]
[338542434,1726726254919,-500.0,0.00013443,2]
[338542435,1726726254929,-751.25,0.00013443,2]
[338542436,1726726254939,-500.0,0.00013443,2]
[338542437,1726726254949,-500.0,0.00013443,2]
[338542438,1726726254959,-500.0,0.00013443,2]
[338542439,1726726254970,-500.0,0.00013443,2]
[338542440,1726726254980,-500.0,0.00013443,2]
[338542441,1726726254990,-897.92,0.00013443,2]
[338542442,1726726255000,-2171.2,0.00013443,2]
[338542443,1726726255009,-1976.64,0.00013443,2]
[338542444,1726726255019,-1541.26,0.00013443,2]
[338542445,1726726255030,-978.64,0.00013443,2]
[338542446,1726726255039,-500.0,0.00013443,2]
[338542447,1726726255049,-758.56,0.00013443,2]
[338542448,1726726255059,-321.48456761,0.00013443,2]
[338542449,1726726255069,-972.65,0.00013443,2]
[338542450,1726726255078,-500.0,0.00013443,2]
[338542451,1726726255087,-699.78,0.00013443,2]
[338542452,1726726255099,-500.0,0.00013443,2]
[338542453,1726726255108,-810.75,0.00013443,2]
[338542454,1726726255118,-589.94,0.00013443,2]
[338542455,1726726255129,-500.0,0.00013443,2]
[338542456,1726726255139,-731.77,0.00013443,2]
[338542457,1726726255150,-737.47,0.00013443,2]
[338542458,1726726255160,-500.0,0.00013443,2]
[338542459,1726726255169,-875.32,0.00013443,2]
[338542460,1726726255180,-500.0,0.00013443,2]
[338542461,1726726255190,-428.03675141,0.00013443,2]
[338542462,1726726255200,-500.0,0.00013473,2]
[338542463,1726726255211,-1000.0,0.00013488,2]
[338542464,1726726255221,-2108.54500636,0.00013495,2]
[338542465,1726726255230,-4868.67414,0.000135,2]
[338542466,1726726255241,-328.44,0.00013503,2]
[338542467,1726726255250,-157.18,0.00013541,2]
[338542468,1726726255260,-492.47,0.000136,2]
[338542469,1726726255270,-359.0,0.000136,2]
[338542470,1726726255280,-848.0,0.000136,2]
[338542471,1726726255290,-340.58,0.00013623,2]
[338542472,1726726255300,-887.76,0.00013698,2]
[338542473,1726726255310,-887.76,0.00013698,2]
[338542474,1726726255319,-887.76,0.00013698,2]
[338542475,1726726255329,-500.0,0.00013698,2]
[338542476,1726726255339,-191.9,0.00013699,2]
[338542477,1726726255348,-152.16,0.00013699,2]
[338542478,1726726255358,-4213.96,0.00013714,2]
[338542479,1726726255367,-5371.56,0.00013714,2]
[338542480,1726726255376,-1044.14,0.00013714,2]
[338542481,1726726255386,-3226.68,0.00013714,2]
[338542482,1726726255396,-2003.73,0.00013714,2]
[338542483,1726726255405,-4301.42,0.00013714,2]
[338542484,1726726255415,-637.47,0.00013714,2]
[338542485,1726726255424,-2699.44,0.00013714,2]
[338542486,1726726255433,-3577.14,0.00013714,2]
[338542487,1726726255442,-9641.04,0.00013714,2]
[338542488,1726726255452,-288.67,0.00013714,2]
[338542489,1726726255461,-915.94,0.00013714,2]
[338542490,1726726255471,-500.0,0.00013714,2]
[338542491,1726726255480,-6308.27,0.00013714,2]
[338542492,1726726255489,-4131.7,0.00013714,2]
[338542493,1726726255498,-1347.94,0.00013714,2]
[338542494,1726726255507,-1656.47,0.00013714,2]
[338542495,1726726255516,-2762.8,0.00013714,2]
[338542496,1726726255525,-603.23,0.00013714,2]
[338542497,1726726255535,-1185.65,0.00013714,2]
[338542498,1726726255544,-505.53,0.00013714,2]
[338542499,1726726255553,-2674.11,0.00013714,2]
[338542500,1726726255562,-500.0,0.00013714,2]
[338542501,1726726255571,-500.0,0.00013714,2]
[338542502,1726726255580,-744.96,0.00013714,2]
[338542503,1726726255589,-866.61,0.00013714,2]
[338542504,1726726255599,-614.78,0.00013714,2]
[338542505,1726726255608,-976.25,0.00013714,2]
[338542506,1726726255618,-3721.98,0.00013714,2]
[338542507,1726726255627,-151.0,0.00013715,2]
[338542508,1726726255637,-500.0,0.00013715,2]
[338542509,1726726255646,-500.0,0.00013715,2]
[338542510,1726726255656,-1201.98,0.00013715,2]
[338542511,1726726255665,-500.0,0.00013715,2]
[338542512,1726726255674,-500.0,0.00013715,2]
[338542513,1726726255684,-500.0,0.00013715,2]
[338542514,1726726255694,-500.0,0.00013715,2]
[338542515,1726726255703,-512.57,0.00013715,2]
[338542516,1726726255713,-500.0,0.00013715,2]
[338542517,1726726255722,-558.96,0.00013715,2]
[338542518,1726726255733,-2161.61,0.00013715,2]
[338542519,1726726255742,-586.54,0.00013715,2]
[338542520,1726726255752,-634.58,0.00013715,2]
[338542521,1726726255761,-1310.5,0.00013715,2]
[338542522,1726726255771,-1721.59,0.00013715,2]
[338542523,1726726255780,-775.65,0.00013715,2]
[338542524,1726726255790,-857.42,0.00013715,2]
[338542525,1726726255800,-500.0,0.00013715,2]
[338542526,1726726255809,-2270.05,0.00013715,2]
[338542527,1726726255819,-2169.17,0.00013715,2]
[338542528,1726726255828,-1194.74,0.00013715,2]
[338542529,1726726255838,-500.0,0.00013715,2]
[338542530,1726726255847,-500.0,0.00013715,2]
[338542531,1726726255856,-500.0,0.00013715,2]
[338542532,1726726255866,-735.02,0.00013715,2]
[338542533,1726726255875,-500.0,0.00013715,2]
[338542534,1726726255884,-504.31,0.00013715,2]
[338542535,1726726255894,-1540.64,0.00013715,2]
[338542536,1726726255903,-639.71,0.00013715,2]
[338542537,1726726255913,-500.0,0.00013715,2]
[338542538,1726726255923,-3526.32,0.00013715,2]
[338542539,1726726255936,-1017.05,0.00013715,2]
[338542540,1726726255945,-967.26,0.00013715,2]
[338542541,1726726255955,-743.3,0.00013715,2]
[338542542,1726726255965,-500.0,0.00013715,2]
[338542543,1726726255975,-1402.77,0.00013715,2]
[338542544,1726726255984,-500.0,0.00013715,2]
[338542545,1726726255994,-500.0,0.00013715,2]
[338542546,1726726256003,-2438.56,0.00013715,2]
[338542547,1726726256012,-1199.42,0.00013715,2]
[338542548,1726726256021,-1805.28,0.00013715,2]
[338542549,1726726256031,-500.0,0.00013715,2]
[338542550,1726726256040,-544.81,0.00013715,2]
[338542551,1726726256049,-562.56,0.00013715,2]
[338542552,1726726256059,-167.38,0.00013715,2]
[338542553,1726726256068,-1458.08,0.00013715,2]
[338542554,1726726256077,-384.4,0.00013715,2]
[338542555,1726726256087,-532.66,0.00013715,2]
[338542556,1726726256100,-526.98,0.00013715,2]
[338542557,1726726256110,-500.0,0.00013715,2]
[338542558,1726726256119,-500.0,0.00013715,2]
[338542559,1726726256128,-542.11,0.00013715,2]
[338542560,1726726256139,-500.0,0.00013715,2]
[338542561,1726726256148,-1725.83,0.00013715,2]
[338542562,1726726256157,-947.81,0.00013715,2]
[338542563,1726726256167,-959.06,0.00013715,2]
[338542564,1726726256180,-1438.42,0.00013715,2]
[338542565,1726726256189,-500.0,0.00013715,2]
[338542566,1726726256199,-1603.04,0.00013715,2]
[338542567,1726726256208,-500.0,0.00013715,2]
[338542568,1726726256218,-509.88,0.00013715,2]
[338542569,1726726256227,-869.39,0.00013715,2]
[338542570,1726726256237,-500.0,0.00013715,2]
[338542571,1726726256247,-500.0,0.00013715,2]
[338542572,1726726256256,-1537.55,0.00013715,2]
[338542573,1726726256266,-872.94,0.00013715,2]
[338542574,1726726256275,-500.0,0.00013715,2]
[338542575,1726726256284,-721.03,0.00013715,2]
[338542576,1726726256294,-1632.1,0.00013715,2]
[338542577,1726726256303,-500.0,0.00013715,2]
[338542578,1726726256312,-624.03,0.00013715,2]
[338542579,1726726256321,-500.0,0.00013715,2]
[338542580,1726726256330,-151.0,0.00013715,2]
[338542581,1726726256340,-500.0,0.00013715,2]
[338542582,1726726256353,-823.62,0.00013715,2]
[338542583,1726726256363,-500.0,0.00013715,2]
[338542584,1726726256373,-500.0,0.00013715,2]
[338542585,1726726256382,-500.0,0.00013715,2]
[338542586,1726726256394,-1347.1,0.00013715,2]
[338542587,1726726256405,-500.0,0.00013715,2]
[338542588,1726726256415,-1061.37,0.00013715,2]
[338542589,1726726256425,-915.08,0.00013715,2]
[338542590,1726726256435,-500.0,0.00013715,2]
[338542591,1726726256444,-500.0,0.00013715,2]
[338542592,1726726256453,-500.0,0.00013715,2]
[338542593,1726726256463,-1882.9,0.00013715,2]
[338542594,1726726256473,-500.0,0.00013715,2]
[338542595,1726726256482,-500.0,0.00013715,2]
[338542596,1726726256491,-500.0,0.00013715,2]
[338542597,1726726256501,-629.21,0.00013715,2]
[338542598,1726726256510,-570.22,0.00013715,2]
[338542599,1726726256520,-1302.03,0.00013715,2]
[338542600,1726726256530,-500.0,0.00013715,2]
[338542601,1726726256539,-500.0,0.00013715,2]
[338542602,1726726256549,-500.0,0.00013715,2]
[338542603,1726726256558,-1111.24,0.00013715,2]
[338542604,1726726256567,-1004.44,0.00013715,2]
[338542605,1726726256576,-500.0,0.00013715,2]
[338542606,1726726256586,-1249.44,0.00013715,2]
[338542607,1726726256595,-1668.61,0.00013715,2]
[338542608,1726726256605,-500.0,0.00013715,2]
[338542609,1726726256614,-500.0,0.00013715,2]
[338542610,1726726256623,-500.0,0.00013715,2]
[338542611,1726726256632,-151.0,0.00013715,2]
[338542612,1726726256642,-1484.77,0.00013715,2]
[338542613,1726726256651,-1349.5,0.00013715,2]
[338542614,1726726256660,-500.0,0.00013715,2]
[338542615,1726726256670,-500.06,0.00013715,2]
[338542616,1726726256680,-154.728178,0.00013715,2]
[338542617,1726726256689,-640.31,0.00013715,2]
[338542618,1726726256699,-1765.5,0.00013715,2]
[338542619,1726726256709,-852.28,0.00013715,2]
[338542620,1726726256719,-671.43,0.00013715,2]
[338542621,1726726256728,-1741.55,0.00013715,2]
[338542622,1726726256739,-500.0,0.00013715,2]
[338542623,1726726256748,-519.69,0.00013715,2]
[338542624,1726726256758,-802.29,0.00013715,2]
[338542625,1726726256767,-500.0,0.00013715,2]
[338542626,1726726256777,-500.0,0.00013715,2]
[338542627,1726726256786,-1105.83,0.00013715,2]
[338542628,1726726256795,-868.76,0.00013715,2]
[338542629,1726726256805,-500.0,0.00013715,2]
[338542630,1726726256814,-511.05,0.00013715,2]
[338542631,1726726256824,-1741.26,0.00013715,2]
[338542632,1726726256833,-500.0,0.00013715,2]
[338542633,1726726256843,-500.0,0.00013715,2]
[338542634,1726726256853,-1797.8,0.00013715,2]
[338542635,1726726256863,-500.0,0.00013715,2]
[338542636,1726726256872,-1021.57,0.00013715,2]
[338542637,1726726256882,-1011.08,0.00013715,2]
[338542638,1726726256892,-621.3,0.00013715,2]
[338542639,1726726256901,-500.0,0.00013715,2]
[338542640,1726726256910,-514.67,0.00013715,2]
[338542641,1726726256920,-481.65778944,0.00013715,2]
[338542642,1726726256929,-500.0,0.00013715,2]
[338542643,1726726256938,-500.0,0.00013715,2]
[338542644,1726726256947,-500.0,0.00013715,2]
[338542645,1726726256957,-1994.54,0.00013715,2]
[338542646,1726726256966,-500.0,0.00013715,2]
[338542647,1726726256978,-2727.27,0.00013715,2]
[338542648,1726726256988,-888.01,0.00013715,2]
[338542649,1726726256998,-500.0,0.00013715,2]
[338542650,1726726257007,-583.36,0.00013715,2]
[338542651,1726726257017,-972.0,0.00013715,2]
[338542652,1726726257028,-500.0,0.00013715,2]
[338542653,1726726257038,-1153.94,0.00013715,2]
[338542654,1726726257047,-500.0,0.00013715,2]
[338542655,1726726257057,-2844.2,0.00013715,2]
[338542656,1726726257066,-1137.49,0.00013715,2]
[338542657,1726726257075,-612.93,0.00013715,2]
[338542658,1726726257085,-1447.1,0.00013715,2]
[338542659,1726726257094,-1311.45,0.00013715,2]
[338542660,1726726257107,-1309.73,0.00013715,2]
[338542661,1726726257117,-1373.59,0.00013715,2]
[338542662,1726726257126,-648.83,0.00013715,2]
[338542663,1726726257136,-500.0,0.00013715,2]
[338542664,1726726257146,-2185.77,0.00013715,2]
[338542665,1726726257155,-745.47,0.00013715,2]
[338542666,1726726257165,-151.0,0.00013715,2]
[338542667,1726726257175,-2526.57,0.00013715,2]
[338542668,1726726257184,-780.4,0.00013715,2]
[338542669,1726726257194,-703.21,0.00013715,2]
[338542670,1726726257204,-2352.46,0.00013715,2]
[338542671,1726726257213,-617.37,0.00013715,2]
[338542672,1726726257223,-500.0,0.00013715,2]
[338542673,1726726257232,-758.69,0.00013715,2]
[338542674,1726726257241,-980.72,0.00013715,2]
[338542675,1726726257251,-1192.44,0.00013715,2]
[338542676,1726726257260,-606.78,0.00013715,2]
[338542677,1726726257269,-1532.45,0.00013715,2]
[338542678,1726726257278,-500.0,0.00013715,2]
[338542679,1726726257287,-500.0,0.00013715,2]
[338542680,1726726257297,-500.0,0.00013715,2]
[338542681,1726726257307,-4696.05,0.00013715,2]
[338542682,1726726257316,-568.98,0.00013715,2]
[338542683,1726726257326,-671.48,0.00013715,2]
[338542684,1726726257335,-570.68,0.00013715,2]
[338542685,1726726257344,-500.0,0.00013715,2]
[338542686,1726726257354,-500.0,0.00013715,2]
[338542687,1726726257363,-500.0,0.00013715,2]
[338542688,1726726257372,-500.0,0.00013715,2]
[338542689,1726726257382,-739.77,0.00013715,2]
[338542690,1726726257391,-500.0,0.00013715,2]
[338542691,1726726257401,-1868.37,0.00013715,2]
[338542692,1726726257411,-500.0,0.00013715,2]
[338542693,1726726257420,-163.86,0.00013715,2]
[338542694,1726726257429,-151.0,0.00013715,2]
[338542695,1726726257439,-750.04,0.00013715,2]
[338542696,1726726257449,-15085.63,0.00013715,2]
[338542697,1726726257459,-500.0,0.00013715,2]
[338542698,1726726257468,-500.0,0.00013715,2]
[338542699,1726726257478,-3366.08,0.00013715,2]
[338542700,1726726257487,-1209.7,0.00013715,2]
[338542701,1726726257497,-500.0,0.00013715,2]
[338542702,1726726257506,-1242.69,0.00013715,2]
[338542703,1726726257516,-500.0,0.00013715,2]
[338542704,1726726257526,-521.27,0.00013715,2]
[338542705,1726726257535,-500.0,0.00013715,2]
[338542706,1726726257544,-500.0,0.00013715,2]
[338542707,1726726257554,-500.0,0.00013715,2]
[338542708,1726726257563,-1446.6,0.00013715,2]
[338542709,1726726257573,-500.0,0.00013715,2]
[338542710,1726726257583,-755.19,0.00013715,2]
[338542711,1726726257592,-500.0,0.00013715,2]
[338542712,1726726257603,-500.0,0.00013715,2]
[338542713,1726726257612,-33358.28,0.00013715,2]
[338542714,1726726257622,-1655.08,0.00013715,2]
[338542715,1726726257631,-672.35,0.00013715,2]
[338542716,1726726257640,-500.0,0.00013715,2]
[338542717,1726726257649,-500.0,0.00013715,2]
[338542718,1726726257659,-500.0,0.00013715,2]
[338542719,1726726257668,-2410.84,0.00013715,2]
[338542720,1726726257682,-151.0,0.00013715,2]
[338542721,1726726257692,-500.0,0.00013715,2]
[338542722,1726726257701,-789.21,0.00013715,2]
[338542723,1726726257710,-500.0,0.00013715,2]
[338542724,1726726257719,-251.64,0.00013715,2]
[338542725,1726726257728,-3611.03,0.00013715,2]
[338542726,1726726257737,-959.36,0.00013715,2]
[338542727,1726726257746,-500.0,0.00013715,2]
[338542728,1726726257755,-1600.25,0.00013715,2]
[338542729,1726726257764,-500.0,0.00013715,2]
[338542730,1726726257773,-880.72,0.00013715,2]